Cogmind - Beta 9.1 @@@ ROGUE MODE // 2019.11.03 @ 11:09:48 Player: Alexbot Result: Destroyed by B-86 Titan with Railgun Performance ------------- Evolutions (6) 3000 Regions Visited (7) 1400 Robots Destroyed (19) 95 Value Destroyed (485) 485 Prototype IDs (4) 80 Alien Tech Used (0) 0 Bonus (0) 0 TOTAL SCORE: 5060 Bonus ------- None Cogmind --------- Core Integrity 0/1150 Matter 159/300 Energy 98/100 System Corruption 3% Temperature Cool (0) Location -4/Factory Parts ------- Power (3) Propulsion (8) Utility (6) Improved Coolant Injector Advanced Visual Processing Unit Improved Melee Analysis Suite Weapon (2) Inventory (4) Micro Nuclear Core Micro Nuclear Core Medium Storage Unit Advanced Terrain Scanner Peak State ------------ Power Micro Nuclear Core Micro Nuclear Core Propulsion VTOL Module VTOL Module VTOL Module VTOL Module VTOL Module VTOL Module Field Propulsion Drive Utility Advanced Visual Processing Unit Improved Melee Analysis Suite Improved Melee Analysis Suite Improved Melee Analysis Suite Improved Melee Analysis Suite Weapon Scythe Scythe Inventory Micro Nuclear Core Micro Nuclear Core Medium Storage Unit Advanced Terrain Scanner [Rating: 52] Favorites ----------- Power Micro Nuclear Core Engine Light Ion Engine Power Core Micro Nuclear Core Propulsion VTOL Module Flight Unit VTOL Module Utility Improved Melee Analysis Suite Device Improved Coolant Injector Processor Improved Melee Analysis Suite Hackware System Shield Weapon Scythe Ballistic Gun Precision Assault Rifle Launcher Mini Grenade Launcher Slashing Weapon Scythe Build | -11 -10 -9 -8 -7 -6 -5 -4 ------- Run | Scr Mat Mat Mat Fac Fac Fac Fac Slots Evolved 12 | . . 2 2 2 2 2 2 Power 2 | . . . 1 . . 1 . Propulsion 6 | . . 2 . 1 1 1 1 Utility 4 | . . . 1 1 1 . 1 Weapon . | . . . . . . . . Parts Attached 33 | . 2 . 7 7 7 7 3 Power 8 | . . . 2 1 4 1 . Engine 2 | . . . 2 . . . . Core 6 | . . . . 1 4 1 . Reactor . | . . . . . . . . Propulsion 10 | . . . . 5 2 2 1 Treads . | . . . . . . . . Leg . | . . . . . . . . Wheel . | . . . . . . . . Hover . | . . . . . . . . Flight 10 | . . . . 5 2 2 1 Utility 9 | . . . 2 . 1 4 2 Device 2 | . . . 1 . . . 1 Storage . | . . . . . . . . Processor 5 | . . . . . 1 4 . Hackware 2 | . . . 1 . . . 1 Protection . | . . . . . . . . Artifact . | . . . . . . . . Weapon 6 | . 2 . 3 1 . . . Energy Gun . | . . . . . . . . Energy Cannon . | . . . . . . . . Ballistic Gun 1 | . . . 1 . . . . Ballistic Cannon . | . . . . . . . . Launcher 3 | . 2 . 1 . . . . Special Weapon . | . . . . . . . . Impact Weapon . | . . . . . . . . Slashing Weapon 2 | . . . 1 1 . . . Piercing Weapon . | . . . . . . . . Special Melee Weapon . | . . . . . . . . Unidentified Prototypes 1 | . . . 1 . . . . Parts Lost 20 | . . . 5 . 2 4 9 Power 3 | . . . 1 . 1 . 1 Propulsion 9 | . . . . . 1 4 4 Utility 5 | . . . 2 . . . 3 Weapon 3 | . . . 2 . . . 1 Highest Loss Streak 6 | . . . 3 . 2 4 6 Average Slot Usage (%) 39 | . 18 22 20 47 56 85 37 Core 3 | . . . . 5 7 11 1 Flight 13 | . . . . 27 34 38 5 Device 1 | . . . 3 . . . 4 Processor 6 | . . . . . . 23 18 Hackware 1 | . . . 4 . . . . Launcher 5 | . 18 22 9 . . . . Slashing Weapon 6 | . . . 2 13 13 11 5 Naked Turns 22 | . 22 . . . . . . Heaviest Build 16 | . 2 2 5 9 16 16 11 Greatest Support 29 | 3 3 3 9 20 25 29 15 Greatest Overweight (x) 1 | . . . . 1 . . . Average Overweight (x) . | . . . . . . . . Largest Inventory Capacity 4 | 4 4 4 4 4 4 4 4 Average Capacity 4 | 4 4 4 4 4 4 4 4 Most Carried 4 | 1 4 4 4 3 4 4 4 Average Carried 3 | . 2 3 3 2 2 4 4 Final Capacity 4 | 4 4 4 4 4 4 4 4 Final Carried 4 | 1 4 3 3 2 4 4 4 Class Distribution -------------------- 64% | Mutant 23% | Scavenger-Sprinter 12% | Scavenger-Mutant Dominant Class ---------------- Mutant | -10/Materials Mutant | -9/Materials Mutant | -8/Materials Scavenger-Sprinter | -7/Factory Scavenger-Mutant | -6/Factory Scavenger-Sprinter | -5/Factory Mutant | -4/Factory Resources | -11 -10 -9 -8 -7 -6 -5 -4 ----------- Run | Scr Mat Mat Mat Fac Fac Fac Fac Matter Collected 391 | 116 45 . 57 73 100 . . Remotely . | . . . . . . . . Salvage Created 402 | . 91 . 138 73 100 . . Parts 29 | . 9 . 9 7 4 . . Haulers Intercepted 1 | . . . 1 . . . . Recyclers Shooed . | . . . . . . . . Parts Field Recycled . | . . . . . . . . Retrieved Matter . | . . . . . . . . Parts Self-Destructed . | . . . . . . . . Prevented . | . . . . . . . . Kills | -11 -10 -9 -8 -7 -6 -5 -4 ------- Run | Scr Mat Mat Mat Fac Fac Fac Fac Combat Hostiles Destroyed 15 | . 3 . 5 3 4 . . Melee 7 | . . . . 3 4 . . AOE 8 | . 3 . 5 . . . . Classes Destroyed 5 | . 2 . 3 . . . . Builder 2 | . 2 . . . . . . Hauler 1 | . . . 1 . . . . Watcher 1 | . . . 1 . . . . Swarmer 10 | . . . 3 3 4 . . Grunt 5 | . 3 . 2 . . . . Best Kill Streak 7 | . 5 . 7 2 4 . . Combat Bots Only 5 | . 3 . 5 2 4 . . Max Kills in Single Turn 2 | . 2 . 2 1 1 . . Gunslinging . | . . . . . . . . Exploded 2 | . 1 . 2 . . . . Melee 1 | . . . . 1 1 . . Uniques/NPCs Destroyed . | . . . . . . . . Combat | -11 -10 -9 -8 -7 -6 -5 -4 -------- Run | Scr Mat Mat Mat Fac Fac Fac Fac Damage Taken 2674 | . 110 21 675 147 113 108 1500 Core 1894 | . 85 11 505 94 16 19 1164 Absorbed by Shields . | . . . . . . . . Core Remaining (%) 79 | 100 66 97 8 86 98 98 . Volleys Fired 10 | . 3 . 7 . . . . Largest 2 | . 2 . 1 . . . . Hottest 60 | . 60 . 30 . . . . Shots Fired 13 | . 6 . 7 . . . . Gun . | . . . . . . . . Cannon . | . . . . . . . . Launcher 13 | . 6 . 7 . . . . Special . | . . . . . . . . Kinetic . | . . . . . . . . Thermal . | . . . . . . . . Explosive 13 | . 6 . 7 . . . . Electromagnetic . | . . . . . . . . Robot Hit Streak 3 | . 1 . 3 . . . . Robot Miss Streak 1 | . 1 . 1 . . . . Penetration Max . | . . . . . . . . Secondary Targets . | . . . . . . . . Shots Hit Robots 18 | . 2 . 6 5 5 . . Core Hits 28 | . 10 . 9 4 4 . 1 Critical Hits 1 | . . . . 1 . . . Critical Kills 1 | . . . . 1 . . . Critical Parts Destroyed . | . . . . . . . . Melee Attacks 25 | . . . 5 12 8 . . Impact . | . . . . . . . . Slashing 25 | . . . 5 12 8 . . Piercing . | . . . . . . . . Sneak Attacks 1 | . . . 1 . . . . Combat Hostiles . | . . . . . . . . Follow-up Attacks 1 | . . . . 1 . . . Damage Inflicted 1421 | . 389 . 715 156 155 . 6 Guns . | . . . . . . . . Cannons . | . . . . . . . . Explosions 922 | . 389 . 533 . . . . Melee 477 | . . . 167 155 155 . . Ramming 22 | . . . 15 1 . . 6 Kinetic . | . . . . . . . . Thermal . | . . . . . . . . Explosive 922 | . 389 . 533 . . . . Electromagnetic . | . . . . . . . . Impact . | . . . . . . . . Slashing 477 | . . . 167 155 155 . . Piercing . | . . . . . . . . Highest Corruption 3 | . . . 2 . . . 3 Average Corruption 2 | . . . 2 . . . 2 Corruption Purged . | . . . . . . . . Effects 2 | . . . 1 . . . 1 Message Errors 2 | . . . 1 . . . 1 Overload Shots . | . . . . . . . . Overflow Damage 13 | . 3 . 10 . . . . Projectiles . | . . . . . . . . Explosions 13 | . 3 . 10 . . . . Melee . | . . . . . . . . Knockbacks . | . . . . . . . . Impact . | . . . . . . . . Kinetic . | . . . . . . . . Secondary . | . . . . . . . . Self-Inflicted Damage 101 | . 50 . 48 . . . 3 Shots 3 | . 2 . 1 . . . . Rammed 8 | . . . 4 1 . . 3 Targets Rammed 8 | . . . 4 1 . . 3 Kicked . | . . . . . . . . Crushed . | . . . . . . . . Highest Temperature 28 | . 28 . . . . 4 . Average Temperature 13 | . 16 . . . . 2 . Received Heat Transfer 450 | . 36 12 225 24 . 27 126 Siege Activations . | . . . . . . . . Robots Corrupted . | . . . . . . . . Combat Hostiles . | . . . . . . . . Parts Fried . | . . . . . . . . Impact Corruptions . | . . . . . . . . Robots Melted . | . . . . . . . . Combat Hostiles . | . . . . . . . . Parts Melted . | . . . . . . . . Heat Transferred . | . . . . . . . . Parts Sabotaged . | . . . . . . . . Parts Stolen . | . . . . . . . . Parts Stripped . | . . . . . . . . Power Chain Reactions . | . . . . . . . . Missiles Intercepted . | . . . . . . . . Alert | -11 -10 -9 -8 -7 -6 -5 -4 ------- Run | Scr Mat Mat Mat Fac Fac Fac Fac Peak Influence 229 | . 125 82 212 229 197 110 82 Average Influence 109 | . 76 60 136 172 145 82 53 Maximum Alert Level 1 | . . . 1 1 . . . Low Security (%) 87 | . . . . . . . . Level 1 12 | . . . . . . . . Level 2 . | . . . . . . . . Level 3 . | . . . . . . . . Level 4 . | . . . . . . . . Level 5 . | . . . . . . . . High Security . | . . . . . . . . Max Security . | . . . . . . . . Squads Dispatched 6 | . . 1 1 . 1 1 2 Investigation 4 | . . 1 . . . 1 2 Extermination . | . . . . . . . . Reinforcement 2 | . . . 1 . 1 . . Assault . | . . . . . . . . Garrison . | . . . . . . . . Intercept . | . . . . . . . . Construction Impeded . | . . . . . . . . Haulers Reinforced . | . . . . . . . . Stealth | -11 -10 -9 -8 -7 -6 -5 -4 --------- Run | Scr Mat Mat Mat Fac Fac Fac Fac Distress Signals 4 | . 1 1 2 . . . . Communications Jammed . | . . . . . . . . Distress Signals . | . . . . . . . . Times Spotted 75 | . 5 3 20 6 5 7 29 Peak Tracking Total 13 | . 4 4 11 3 4 7 13 Tactical Retreats 10 | . 1 . 2 1 . . 6 Traps | -11 -10 -9 -8 -7 -6 -5 -4 ------- Run | Scr Mat Mat Mat Fac Fac Fac Fac Traps Triggered 3 | . . . 1 . . 2 . Indirectly . | . . . . . . . . Trap Hack Attempts . | . . . . . . . . Triggered . | . . . . . . . . Disarmed . | . . . . . . . . Reprogrammed . | . . . . . . . . Reused . | . . . . . . . . Traps Extracted . | . . . . . . . . Installed . | . . . . . . . . Triggered . | . . . . . . . . Machines | -11 -10 -9 -8 -7 -6 -5 -4 ---------- Run | Scr Mat Mat Mat Fac Fac Fac Fac Machines Disabled 2 | . 2 . . . . . . Max in Single Turn 1 | . 1 . . . . . . Machines Sabotaged . | . . . . . . . . Garrisons Compromised . | . . . . . . . . Overloaded Fab Kills . | . . . . . . . . Fab Network Shutdowns . | . . . . . . . . Hacking | -11 -10 -9 -8 -7 -6 -5 -4 --------- Run | Scr Mat Mat Mat Fac Fac Fac Fac Machines Accessed 7 | . . 1 . 2 . 2 2 Terminals 7 | . . 1 . 2 . 2 2 Fabricators . | . . . . . . . . Repair Stations . | . . . . . . . . Recycling Units . | . . . . . . . . Scanalyzers . | . . . . . . . . Garrison Access . | . . . . . . . . Total Hacks 21 | . . 2 . 5 . 9 5 Successful 8 | . . . . 3 . 4 1 Failed 13 | . . 2 . 2 . 5 4 Catastrophic 4 | . . 1 . . . 1 2 Database Lockouts . | . . . . . . . . Manual 14 | . . . . 3 . 6 5 Terminals 21 | . . 2 . 5 . 9 5 Fabricators . | . . . . . . . . Repair Stations . | . . . . . . . . Recycling Units . | . . . . . . . . Scanalyzers . | . . . . . . . . Garrison Access . | . . . . . . . . Terminal Hacks 6 | . . . . 3 . 3 . Prototype ID Bank 1 | . . . . 1 . . . Level Access Points 1 | . . . . 1 . . . Branch Access Points 1 | . . . . 1 . . . Unreport Threat 1 | . . . . . . 1 . Registered Prototypes 1 | . . . . . . 1 . Zone Layout 1 | . . . . . . 1 . Fabricator Hacks . | . . . . . . . . Repair Station Hacks . | . . . . . . . . Recycling Unit Hacks . | . . . . . . . . Scanalyzer . | . . . . . . . . Garrison Access Hacks . | . . . . . . . . Unauthorized Hacks 6 | . . . . . . 2 4 Terminals 2 | . . . . . . 1 1 Botnet 2 | . . . . . . 1 1 Fabricators . | . . . . . . . . Repair Stations . | . . . . . . . . Recycling Units . | . . . . . . . . Scanalyzers . | . . . . . . . . Garrison Access . | . . . . . . . . Data Cores Recovered . | . . . . . . . . Used . | . . . . . . . . Hacking Detections 6 | . . 1 . 2 . 1 2 Full Trace Events 4 | . . 1 . . . 1 2 Feedback Events . | . . . . . . . . Feedback Blocked . | . . . . . . . . Robot Schematics Acquired . | . . . . . . . . Robots Built . | . . . . . . . . Matter . | . . . . . . . . Time . | . . . . . . . . Total Robot Build Rating . | . . . . . . . . Part Schematics Acquired . | . . . . . . . . Parts Built . | . . . . . . . . Matter . | . . . . . . . . Time . | . . . . . . . . Total Part Build Rating . | . . . . . . . . Parts Repaired . | . . . . . . . . Time . | . . . . . . . . Parts Recycled . | . . . . . . . . Recycled Matter . | . . . . . . . . Retrieved Matter . | . . . . . . . . Retrieved Components . | . . . . . . . . Parts Scanalyzed . | . . . . . . . . Part Schematics Acquired . | . . . . . . . . Parts Damaged . | . . . . . . . . Bothacking | -11 -10 -9 -8 -7 -6 -5 -4 ------------ Run | Scr Mat Mat Mat Fac Fac Fac Fac Used RIF Installer . | . . . . . . . . Robots Hacked . | . . . . . . . . Non-combat . | . . . . . . . . Combat . | . . . . . . . . Robot Hacks Applied . | . . . . . . . . Relay Couplers Released . | . . . . . . . . Robots Rewired . | . . . . . . . . Allies Hacked . | . . . . . . . . Hacks Repelled . | . . . . . . . . Allies | -11 -10 -9 -8 -7 -6 -5 -4 -------- Run | Scr Mat Mat Mat Fac Fac Fac Fac Total Allies . | . . . . . . . . Largest Group . | . . . . . . . . Highest-Rated Group . | . . . . . . . . Highest-Rated Ally . | . . . . . . . . Total Orders . | . . . . . . . . Ally Attacks . | . . . . . . . . Total Damage . | . . . . . . . . Kills . | . . . . . . . . Allies Corrupted . | . . . . . . . . Allies Melted . | . . . . . . . . Intel | -11 -10 -9 -8 -7 -6 -5 -4 ------- Run | Scr Mat Mat Mat Fac Fac Fac Fac Robot Analysis Total . | . . . . . . . . Derelict Logs Recovered . | . . . . . . . . Drone Launches . | . . . . . . . . Drone Recoveries . | . . . . . . . . Exploration | -11 -10 -9 -8 -7 -6 -5 -4 ------------- Run | Scr Mat Mat Mat Fac Fac Fac Fac Turns Passed 787 | 10 66 45 205 135 82 84 160 Spaces Moved 1534 | 18 100 83 321 267 149 249 347 Core 733 | 18 100 83 321 28 . . 183 Treads . | . . . . . . . . Legs . | . . . . . . . . Wheels . | . . . . . . . . Hover . | . . . . . . . . Flight 801 | . . . . 239 149 249 164 Fastest Speed 28 | 50 50 50 50 31 28 28 34 Average Speed 40 | 50 50 50 50 34 32 29 43 Slowest Speed 100 | 50 50 50 50 100 34 34 50 Overloaded Moves . | . . . . . . . . Propulsion Burnouts . | . . . . . . . . Robots Hopped 1 | . . . . 1 . . . Cave-ins Triggered . | . . . . . . . . Exploration Rate (%) 16 | 3 31 14 39 10 6 12 18 Regions Visited 7 Branch Regions . Pre-discovered Areas . | . . . . . . . . Known Exits Taken 1 | . . . . 1 . . . Unknown Exits Taken 6 | 1 1 1 1 . 1 1 . Scrap Searched . | . . . . . . . . Spaces Dug 5 | . . . 1 4 . . . Terrain Destroyed 101 | . 24 . 73 4 . . . Melee 5 | . . . 1 4 . . . Projectile . | . . . . . . . . AOE 96 | . 24 . 72 . . . . Actions | -11 -10 -9 -8 -7 -6 -5 -4 --------- Run | Scr Mat Mat Mat Fac Fac Fac Fac Total 1635 | 18 109 87 350 289 169 256 357 Wait 12 | . . . . 6 4 . 2 Move 1526 | 17 99 82 320 265 148 248 347 Hop 1 | . . . . 1 . . . Pick Up 14 | 1 5 2 4 . 2 . . Fast Attach 24 | . . . 3 6 5 7 3 Attach 7 | . 2 . 4 1 . . . Detach 1 | . . . . . . . 1 Swap 2 | . . . . . 2 . . Drop 10 | . . 3 3 . 2 1 1 Fire 10 | . 3 . 7 . . . . Melee 21 | . . . 5 10 6 . . Ram 7 | . . . 4 . . . 3 Kick . | . . . . . . . . Crush . | . . . . . . . . Escape Stasis . | . . . . . . . . Rewire . | . . . . . . . . Trap . | . . . . . . . . Miscellaneous . | . . . . . . . . Route ------- -11/Scrapyard -10/Materials -9/Materials -8/Materials -7/Factory (discovered 6 exits: *Fac x4 / Low x2) -6/Factory -5/Factory -4/Factory History --------- Turn | Location | Event 5 | -11/Scrapyard | Discovered new exit (range 14) 11 | -11/Scrapyard | Entered Materials 70 | -10/Materials | Discovered new exit (range 15) 77 | -10/Materials | Entered another Materials area 77 | -9/Materials | Evolved 2 slots: Propulsion x2 115 | -9/Materials | Discovered new exit (range 16) 122 | -9/Materials | Entered another Materials area 122 | -8/Materials | Evolved 2 slots: Power x1, Utility x1 213 | -8/Materials | Core integrity fell below 50% 222 | -8/Materials | Lost 3 parts (1p1u1w) 304 | -8/Materials | Build established: Mutant 311 | -8/Materials | Core integrity fell below 20% 317 | -8/Materials | Discovered new exit (range 16) 327 | -8/Materials | Entered Factory 327 | -7/Factory | Evolved 2 slots: Propulsion x1, Utility x1 429 | -7/Factory | Identified exit to Lower Caves 429 | -7/Factory | Identified exit to Factory 462 | -7/Factory | Entered another Factory area 462 | -6/Factory | Evolved 2 slots: Propulsion x1, Utility x1 538 | -6/Factory | Discovered new exit (range 20) 544 | -6/Factory | Entered another Factory area 544 | -5/Factory | Evolved 2 slots: Power x1, Propulsion x1 623 | -5/Factory | Discovered new exit (range 14) 628 | -5/Factory | Entered another Factory area 628 | -4/Factory | Evolved 2 slots: Propulsion x1, Utility x1 654 | -4/Factory | Lost 4 parts (4n) 727 | -4/Factory | Lost 6 parts (1p3n2u) 746 | -4/Factory | Core integrity fell below 50% 776 | -4/Factory | Core integrity fell below 20% 781 | -4/Factory | Spotted B-86 Titan 788 | -4/Factory | Destroyed by B-86 Titan with Railgun Last Messages --------------- 00770_ S-27 Virus destroyed. 00771_ K-01 Serf collects debris. 00771_ R-10 Processor collects VTOL Module. 00772_ Slammed into S-27 Virus. 00774_ U-05 Engineer lays Concrete. 00775_ R-10 Processor collects VTOL Module. 00775_ Slug penetrates Wall. 00776_ U-05 Engineer lays Concrete. 00776_ K-01 Serf collects debris. 00776_ S-27 Virus destroyed. 00777_ Acquired VTOL Module. 00778_ Penetrated by Slug. 00778_ VTOL Module destroyed. 00779_ K-01 Serf collects debris. 00779_ R-10 Processor collects Autogun. 00780_ U-05 Engineer builds a Wall. 00782_ Penetrated by Slug. 00782_ Slug penetrates Terminal. 00782_ Terminal disabled. 00785_ Imp. Melee Analysis Suite destroyed. Map ----- +----------------------------------------------------+ | ?????????????????????????????????????????????? | | ?????????????????????????????????????????????? | | ?????????????????????????????????????????????? | | ?????????????????????????????????????????????? | | ?????????????????????????????????????????????? | | ?????????????????????????????????????????????? | | ?????????????????????????????????????????????? | | ?????????????????????????????????????????????? | | ?????????????? #######???????????????????????? | | ?????????????? ???????????????????????? | | ?????????????? ???????????????????????? | | ?????????????? ???????????????????????? | | ??????????????? ???????????????????????? | | ???????????????? ???????????????????????? | | ?????????????#??# ???????????????????????? | | ?????????????? ?# ###+##################?? | | ?????????????? # ### | | ??????????????? + # | | ????????????????; """"""""" """"""""" # | | ????????????????# # | | ????????????????#!! """"""""" """"""""" # | | ????????????????#!! # | | ?????????# ###### # = | | ?????????# !] # | | ?????????# /] T # | | ?????????# @ /] " # | | ?????????# # | | ?????????# s w !# | | ?????????# ##;BB;##########us # | | ?????????# #?#BB##????????# ### | | ?????????# """"" #?####??""""" # | | ?????????# "" F" #???????""""" / % ^ | | ?????????# "" "" ?????+ """ # | | ??????????? #?????# # % | | ??????????? ] = #?????# """"" ?# | | ???????????############?????# """""??### ##### | | ??????????????????????????????""" ?????# # ??? | | ?????????????????????????????? ??????# # ??? | | ???????????????????????????????#???????# # ?? | | ???????????????????????????????????????# # ?? | | ??????????????????????????????????????? + ? | | ???????????????????????????????????????# # ? | | ???????????????????????????????????????# # = | | ???????????????????????????????????????# # = | | ???????????????????????????????????????# ##### | | ???????????????????????????????????????# ????? | | ???????????????????????????????????????# ????? | | ????????????????????????????????????????+????? | | ?????????????????????????????????????????????? | | ?????????????????????????????????????????????? | +----------------------------------------------------+ Best States ------------- Heat Dissipation 43 Coolant Potential 80 Energy Generation 25 Energy Capacity 220 Matter Stores 216 Matter Capacity 300 Sight Range 20 Terrain Scan Density 10 Additional Mass Support 6 Evasion (%) 64 Melee Accuracy 24 Offensive Hacking 12 Defensive Hacking 10 Item Schematics ----------------- None Robot Schematics ------------------ None Fabricated ------------ Nothing Alien Tech Used ----------------- None Achievements -------------- None Challenges ------------ None Game ------ Seed MakeshiftCooledAnalyzer Manual? 0 Play Time 00:17:56 Cumulative 673.8 hours Start 2019.11.03 @ 10:55:07 End 2019.11.03 @ 11:09:48 Sessions 1 Manual Loads 0 Difficulty Rogue Special Mode None Game No. 167 Rogue 167 Adventurer 0 Explorer 0 Win Type - Total 30 Types 22/0/2/3/2/0/1 Lore% 96 Gallery% 97 Achievement% 90 Wizard Run 0 Options --------- ASCII 0 Keyboard 1 Movement Numpad Keybinds 0 Fullscreen 1 Font 18/SmallcapsGlow Map View 76x50 Tactical HUD 1 Map Filters NONE Filters NONE Steam 1 RUN: 4be9eed2-5fab-4c07-94c7-d7ff64456f77